[Event "*** Titled Tuesday Blitz"]
[Site "Chess.com"]
[Date "2020.10.20"]
[Round "2"]
[White "annamaja"]
[Black "Superfelix"]
[Result "1-0"]
[WhiteElo "2285"]
[BlackElo "2438"]
[TimeControl "180+1"]
[EndTime "10:17:36 PDT"]
[Termination "annamaja won by resignation"]

1. e4 {[%clk 0:03:00.9]} 1... c6 {[%clk 0:02:56]} 2. d4 {[%clk 0:03:00.7]} 2...
g6 {[%clk 0:02:56.6]} 3. Nc3 {[%clk 0:03:00.2]} 3... d5 {[%clk 0:02:57.2]} 4.
Nf3 {[%clk 0:02:58.2]} 4... dxe4 {[%clk 0:02:57.5]} 5. Nxe4 {[%clk 0:02:59.1]}
5... Nf6 {[%clk 0:02:58.3]} 6. Nxf6+ {[%clk 0:02:58.9]} 6... exf6 {[%clk
0:02:59.2]} 7. Bd3 {[%clk 0:02:59.5]} 7... Bg7 {[%clk 0:02:59.6]} 8. O-O {[%clk
0:02:59]} 8... O-O {[%clk 0:03:00.2]} 9. Be3 {[%clk 0:02:59.4]} 9... a5 {[%clk
0:03:00.8]} 10. c4 {[%clk 0:02:59.9]} 10... Na6 {[%clk 0:03:01.4]} 11. a3 {[%clk
0:02:59.7]} 11... Nc7 {[%clk 0:03:01.5]} 12. Qd2 {[%clk 0:02:58.1]} 12... a4
{[%clk 0:03:01.7]} 13. Rfe1 {[%clk 0:02:57.9]} 13... Re8 {[%clk 0:03:01.5]} 14.
Bc2 {[%clk 0:02:55]} 14... Be6 {[%clk 0:03:00.7]} 15. Qb4 {[%clk 0:02:53.9]}
15... b5 {[%clk 0:02:59.9]} 16. d5 {[%clk 0:02:50.2]} 16... Bf8 {[%clk 0:02:59]}
17. Bc5 {[%clk 0:02:17]} 17... Na6 {[%clk 0:02:57.8]} 18. Qc3 {[%clk 0:02:14.1]}
18... Nxc5 {[%clk 0:02:57]} 19. dxe6 {[%clk 0:02:14.3]} 19... Nxe6 {[%clk
0:02:53.9]} 20. Be4 {[%clk 0:02:10]} 20... Rc8 {[%clk 0:02:51.7]} 21. Rad1
{[%clk 0:02:04.8]} 21... Qb6 {[%clk 0:02:51.1]} 22. cxb5 {[%clk 0:01:58.4]}
22... cxb5 {[%clk 0:02:52]} 23. Qxf6 {[%clk 0:01:58.6]} 23... Bg7 {[%clk
0:02:50.2]} 24. Qh4 {[%clk 0:01:58.7]} 24... Bxb2 {[%clk 0:02:47.7]} 25. Bd5
{[%clk 0:01:54.4]} 25... h5 {[%clk 0:02:18.2]} 26. g4 {[%clk 0:01:29]} 26...
hxg4 {[%clk 0:02:13.5]} 27. Qxg4 {[%clk 0:01:10.4]} 27... Ng7 {[%clk 0:02:03.9]}
28. Ng5 {[%clk 0:00:57.8]} 28... Rf8 {[%clk 0:01:38.3]} 29. Nxf7 {[%clk
0:00:42.7]} 29... Rc5 {[%clk 0:01:08.4]} 30. Re6 {[%clk 0:00:20.6]} 30... Qd8
{[%clk 0:00:54.9]} 31. Nxd8 {[%clk 0:00:14.3]} 31... Rxd8 {[%clk 0:00:51.9]} 32.
Rd6+ {[%clk 0:00:10.9]} 32... Rxd5 {[%clk 0:00:51.4]} 33. Rxd8+ {[%clk
0:00:10.6]} 33... Rxd8 {[%clk 0:00:50]} 34. Rxd8+ {[%clk 0:00:11.5]} 34... Kh7
{[%clk 0:00:50.9]} 35. Qd7 {[%clk 0:00:10.5]} 35... Bxa3 {[%clk 0:00:50.4]} 36.
Qh3+ {[%clk 0:00:09.8]} 36... Nh5 {[%clk 0:00:49.9]} 37. Rd7+ {[%clk 0:00:10.2]}
37... Kh6 {[%clk 0:00:50.6]} 38. Qe3+ {[%clk 0:00:10.2]} 38... g5 {[%clk
0:00:48.5]} 39. Qe6+ {[%clk 0:00:10.8]} 1-0

[Event "*** Titled Tuesday Blitz"]
[Site "Chess.com"]
[Date "2020.10.20"]
[Round "2"]
[White "Luibov_AN"]
[Black "CM_rui"]
[Result "0-1"]
[WhiteElo "2032"]
[BlackElo "2373"]
[TimeControl "180+1"]
[EndTime "10:17:37 PDT"]
[Termination "CM_rui won on time"]

1. d4 {[%clk 0:03:00.9]} 1... Nf6 {[%clk 0:02:59.7]} 2. Nf3 {[%clk 0:03:01]}
2... e6 {[%clk 0:02:58.9]} 3. c4 {[%clk 0:03:00.4]} 3... Bb4+ {[%clk 0:02:57.8]}
4. Nc3 {[%clk 0:03:00.1]} 4... O-O {[%clk 0:02:57.7]} 5. g3 {[%clk 0:03:00]}
5... d6 {[%clk 0:02:57.8]} 6. Bg2 {[%clk 0:03:00.2]} 6... Nbd7 {[%clk
0:02:57.9]} 7. O-O {[%clk 0:02:59.1]} 7... e5 {[%clk 0:02:58]} 8. Qc2 {[%clk
0:02:57.6]} 8... Qe7 {[%clk 0:02:56.4]} 9. dxe5 {[%clk 0:02:57]} 9... dxe5
{[%clk 0:02:57.3]} 10. Nd5 {[%clk 0:02:51.5]} 10... Nxd5 {[%clk 0:02:52.8]} 11.
cxd5 {[%clk 0:02:51.6]} 11... Nb6 {[%clk 0:02:51.4]} 12. a3 {[%clk 0:02:40]}
12... Bd6 {[%clk 0:02:50.1]} 13. b4 {[%clk 0:02:36.5]} 13... Nxd5 {[%clk
0:02:47.9]} 14. Ng5 {[%clk 0:02:36.3]} 14... Nf6 {[%clk 0:02:45]} 15. Bb2 {[%clk
0:02:29.7]} 15... h6 {[%clk 0:02:43.6]} 16. Nf3 {[%clk 0:02:25]} 16... Bd7
{[%clk 0:02:36.6]} 17. Nh4 {[%clk 0:02:20.6]} 17... c6 {[%clk 0:02:33.8]} 18.
Rad1 {[%clk 0:02:16.1]} 18... Rad8 {[%clk 0:02:33]} 19. Qb3 {[%clk 0:01:59.5]}
19... Be6 {[%clk 0:02:29.5]} 20. Qa4 {[%clk 0:01:59.5]} 20... a6 {[%clk
0:02:23]} 21. Qc2 {[%clk 0:01:58.5]} 21... Nd5 {[%clk 0:02:21]} 22. Nf5 {[%clk
0:01:57.1]} 22... Bxf5 {[%clk 0:02:20.6]} 23. Qxf5 {[%clk 0:01:56.1]} 23... Bc7
{[%clk 0:02:19.1]} 24. Be4 {[%clk 0:01:50.5]} 24... Nf6 {[%clk 0:02:12.4]} 25.
Bc2 {[%clk 0:01:45.4]} 25... Rd5 {[%clk 0:02:06.7]} 26. e4 {[%clk 0:01:41.4]}
26... Rxd1 {[%clk 0:02:05.8]} 27. Rxd1 {[%clk 0:01:41.4]} 27... g6 {[%clk
0:01:36.6]} 28. Qh3 {[%clk 0:01:19.6]} 28... Kg7 {[%clk 0:01:35.3]} 29. Bc1
{[%clk 0:01:17.5]} 29... h5 {[%clk 0:01:32.5]} 30. Bg5 {[%clk 0:01:14.1]} 30...
Bb6 {[%clk 0:01:23.8]} 31. Rd7 {[%clk 0:00:54]} 31... Bxf2+ {[%clk 0:00:48.7]}
32. Kxf2 {[%clk 0:00:44.2]} 32... Nxe4+ {[%clk 0:00:49]} 33. Bxe4 {[%clk
0:00:41.7]} 33... Qxg5 {[%clk 0:00:49.4]} 34. Qf1 {[%clk 0:00:31.9]} 34... Qg4
{[%clk 0:00:42.7]} 35. Qe2 {[%clk 0:00:27.8]} 35... Qxd7 {[%clk 0:00:41.8]} 0-1

[Event "*** Titled Tuesday Blitz"]
[Site "Chess.com"]
[Date "2020.10.20"]
[Round "2"]
[White "Oligan22"]
[Black "oogee"]
[Result "1-0"]
[WhiteElo "2419"]
[BlackElo "2172"]
[TimeControl "180+1"]
[EndTime "10:17:39 PDT"]
[Termination "Oligan22 won on time"]

1. e4 {[%clk 0:03:00.9]} 1... c5 {[%clk 0:02:59.4]} 2. Nf3 {[%clk 0:02:58.8]}
2... d6 {[%clk 0:02:59.1]} 3. Bb5+ {[%clk 0:02:57.1]} 3... Bd7 {[%clk
0:02:58.3]} 4. Bxd7+ {[%clk 0:02:56.7]} 4... Qxd7 {[%clk 0:02:58.3]} 5. O-O
{[%clk 0:02:56]} 5... Nc6 {[%clk 0:02:57.1]} 6. Re1 {[%clk 0:02:44.6]} 6... g6
{[%clk 0:02:54.4]} 7. e5 {[%clk 0:02:39.7]} 7... Bg7 {[%clk 0:02:51.8]} 8. exd6
{[%clk 0:02:31.9]} 8... Qxd6 {[%clk 0:02:50.7]} 9. Nc3 {[%clk 0:02:32.5]} 9...
Nf6 {[%clk 0:02:49]} 10. d3 {[%clk 0:02:24]} 10... O-O {[%clk 0:02:40.2]} 11. h3
{[%clk 0:02:20.3]} 11... Rad8 {[%clk 0:02:30]} 12. Be3 {[%clk 0:02:20.2]} 12...
b6 {[%clk 0:02:18.2]} 13. Qd2 {[%clk 0:02:18.5]} 13... Rfe8 {[%clk 0:02:16.6]}
14. Bh6 {[%clk 0:02:17.2]} 14... Bh8 {[%clk 0:02:07.1]} 15. Rad1 {[%clk
0:02:06.3]} 15... Nd4 {[%clk 0:01:58]} 16. Nxd4 {[%clk 0:02:03.4]} 16... cxd4
{[%clk 0:01:51.9]} 17. Ne4 {[%clk 0:01:54.9]} 17... Nxe4 {[%clk 0:01:48.2]} 18.
Rxe4 {[%clk 0:01:55.8]} 18... e5 {[%clk 0:01:23.1]} 19. Rde1 {[%clk 0:01:47.9]}
19... f5 {[%clk 0:01:06.5]} 20. R4e2 {[%clk 0:01:47]} 20... Qc6 {[%clk
0:00:44.8]} 21. h4 {[%clk 0:01:38.1]} 21... e4 {[%clk 0:00:40.9]} 22. h5 {[%clk
0:01:22.3]} 22... Re6 {[%clk 0:00:31.7]} 23. dxe4 {[%clk 0:00:44.7]} 23... fxe4
{[%clk 0:00:18.2]} 24. Qf4 {[%clk 0:00:45]} 24... Rde8 {[%clk 0:00:13]} 25. hxg6
{[%clk 0:00:40.7]} 25... Rf6 {[%clk 0:00:00.9]} 26. Rxe4 {[%clk 0:00:21.5]} 1-0

[Event "*** Titled Tuesday Blitz"]
[Site "Chess.com"]
[Date "2020.10.20"]
[Round "2"]
[White "almaguerjm"]
[Black "TheCavemanChesss"]
[Result "0-1"]
[WhiteElo "2288"]
[BlackElo "2475"]
[TimeControl "180+1"]
[EndTime "10:17:40 PDT"]
[Termination "TheCavemanChesss won by resignation"]

1. d4 {[%clk 0:03:00.9]} 1... Nf6 {[%clk 0:02:58.3]} 2. c4 {[%clk 0:02:57.7]}
2... e6 {[%clk 0:02:58.5]} 3. Nf3 {[%clk 0:02:49.6]} 3... d5 {[%clk 0:02:56.7]}
4. g3 {[%clk 0:02:48.8]} 4... Be7 {[%clk 0:02:56]} 5. Bg2 {[%clk 0:02:48.9]}
5... O-O {[%clk 0:02:54.7]} 6. O-O {[%clk 0:02:49.5]} 6... dxc4 {[%clk
0:02:55.3]} 7. Ne5 {[%clk 0:02:49.3]} 7... Nc6 {[%clk 0:02:54.4]} 8. Nxc6 {[%clk
0:02:43.4]} 8... bxc6 {[%clk 0:02:55.3]} 9. Na3 {[%clk 0:02:43.6]} 9... Bxa3
{[%clk 0:02:32.6]} 10. bxa3 {[%clk 0:02:44.5]} 10... Rb8 {[%clk 0:02:33.5]} 11.
Qc2 {[%clk 0:02:26.4]} 11... Ba6 {[%clk 0:01:58.4]} 12. Rd1 {[%clk 0:02:13]}
12... Qe7 {[%clk 0:01:47.4]} 13. e4 {[%clk 0:02:08]} 13... Rfd8 {[%clk
0:01:37.4]} 14. Qc3 {[%clk 0:02:06.6]} 14... e5 {[%clk 0:01:30.9]} 15. Be3
{[%clk 0:01:24.4]} 15... Ng4 {[%clk 0:01:30.8]} 16. d5 {[%clk 0:01:21.3]} 16...
cxd5 {[%clk 0:01:25.6]} 17. exd5 {[%clk 0:01:11.4]} 17... Nxe3 {[%clk
0:01:23.5]} 18. Qxe3 {[%clk 0:01:10.9]} 18... Qd6 {[%clk 0:01:15.6]} 19. Rd2
{[%clk 0:01:06.2]} 19... Rb6 {[%clk 0:01:11.5]} 20. Re1 {[%clk 0:01:02.6]} 20...
Rdb8 {[%clk 0:00:56.6]} 21. Bf1 {[%clk 0:00:49.1]} 21... Rb1 {[%clk 0:00:44.9]}
22. Qxa7 {[%clk 0:00:41.1]} 22... Rxe1 {[%clk 0:00:28.6]} 23. Qxb8+ {[%clk
0:00:39.3]} 23... Qf8 {[%clk 0:00:29]} 24. Qxf8+ {[%clk 0:00:18.2]} 24... Kxf8
{[%clk 0:00:29.1]} 25. d6 {[%clk 0:00:18.6]} 25... Rxf1+ {[%clk 0:00:16.3]} 26.
Kxf1 {[%clk 0:00:17.4]} 26... c3+ {[%clk 0:00:16.7]} 27. Ke1 {[%clk 0:00:07.4]}
27... cxd2+ {[%clk 0:00:16.6]} 28. Kxd2 {[%clk 0:00:08.3]} 28... cxd6 {[%clk
0:00:17.5]} 0-1

[Event "*** Titled Tuesday Blitz"]
[Site "Chess.com"]
[Date "2020.10.20"]
[Round "2"]
[White "canary2016"]
[Black "Sueetin"]
[Result "0-1"]
[WhiteElo "1948"]
[BlackElo "2361"]
[TimeControl "180+1"]
[EndTime "10:17:40 PDT"]
[Termination "Sueetin won by checkmate"]

1. d4 {[%clk 0:03:00.9]} 1... Nf6 {[%clk 0:02:59.2]} 2. c4 {[%clk 0:03:00.5]}
2... e6 {[%clk 0:02:59.1]} 3. g3 {[%clk 0:02:59.5]} 3... Bb4+ {[%clk 0:02:57.2]}
4. Nd2 {[%clk 0:02:58.7]} 4... d5 {[%clk 0:02:50]} 5. Bg2 {[%clk 0:02:53.1]}
5... O-O {[%clk 0:02:42.4]} 6. Qc2 {[%clk 0:02:49.5]} 6... c5 {[%clk 0:02:31.7]}
7. a3 {[%clk 0:02:47.2]} 7... Bxd2+ {[%clk 0:02:29.3]} 8. Qxd2 {[%clk
0:02:46.5]} 8... cxd4 {[%clk 0:02:27.9]} 9. Qxd4 {[%clk 0:02:44.8]} 9... Nc6
{[%clk 0:02:26.9]} 10. Qd3 {[%clk 0:02:41]} 10... Ne5 {[%clk 0:02:22.7]} 11. Qc3
{[%clk 0:02:38.6]} 11... Nxc4 {[%clk 0:02:21.4]} 12. Bg5 {[%clk 0:02:37.5]}
12... h6 {[%clk 0:02:11.3]} 13. Bf4 {[%clk 0:02:36.7]} 13... e5 {[%clk
0:02:07.4]} 14. Bxe5 {[%clk 0:02:29.7]} 14... Nxe5 {[%clk 0:02:06.2]} 15. Qxe5
{[%clk 0:02:29]} 15... Re8 {[%clk 0:02:05.3]} 16. Qc3 {[%clk 0:02:27.7]} 16...
d4 {[%clk 0:02:02]} 17. Qd3 {[%clk 0:02:25.9]} 17... Be6 {[%clk 0:01:20.1]} 18.
Nf3 {[%clk 0:02:16.8]} 18... Qa5+ {[%clk 0:00:50]} 19. Qd2 {[%clk 0:02:06.5]}
19... Qa6 {[%clk 0:00:45.9]} 20. O-O {[%clk 0:02:01.2]} 20... Rad8 {[%clk
0:00:35.9]} 21. Rfe1 {[%clk 0:01:48.9]} 21... Bc4 {[%clk 0:00:30.5]} 22. Nxd4
{[%clk 0:01:32.9]} 22... Ne4 {[%clk 0:00:26.7]} 23. Qe3 {[%clk 0:01:13.2]} 23...
Qf6 {[%clk 0:00:24.2]} 24. Bxe4 {[%clk 0:00:54.2]} 24... Rxd4 {[%clk 0:00:22.7]}
25. f3 {[%clk 0:00:32.6]} 25... Bd5 {[%clk 0:00:21.7]} 26. Rad1 {[%clk
0:00:11.1]} 26... Rdxe4 {[%clk 0:00:21.5]} 27. fxe4 {[%clk 0:00:10.8]} 27...
Bxe4 {[%clk 0:00:22.4]} 28. Qf2 {[%clk 0:00:10.6]} 28... Qg6 {[%clk 0:00:20.6]}
29. Rd2 {[%clk 0:00:09.5]} 29... Bc6 {[%clk 0:00:20.2]} 30. Red1 {[%clk
0:00:09.6]} 30... Qe4 {[%clk 0:00:19.7]} 31. Rd8 {[%clk 0:00:09]} 31... Qh1#
{[%clk 0:00:19.1]} 0-1

[Event "*** Titled Tuesday Blitz"]
[Site "Chess.com"]
[Date "2020.10.20"]
[Round "2"]
[White "LiamVrolijk"]
[Black "AleksanderHnydiuk"]
[Result "1-0"]
[WhiteElo "2863"]
[BlackElo "2554"]
[TimeControl "180+1"]
[EndTime "10:17:43 PDT"]
[Termination "LiamVrolijk won by resignation"]

1. d4 {[%clk 0:03:00.9]} 1... d5 {[%clk 0:02:59.6]} 2. c4 {[%clk 0:03:01]} 2...
c6 {[%clk 0:02:59.9]} 3. Nf3 {[%clk 0:03:00.4]} 3... Nf6 {[%clk 0:03:00]} 4. g3
{[%clk 0:03:00.8]} 4... g6 {[%clk 0:02:58.1]} 5. Bg2 {[%clk 0:03:00.4]} 5... Bg7
{[%clk 0:02:58.7]} 6. O-O {[%clk 0:02:59.7]} 6... O-O {[%clk 0:02:59.2]} 7. Ne5
{[%clk 0:02:58]} 7... dxc4 {[%clk 0:02:44.6]} 8. Nxc4 {[%clk 0:02:54.8]} 8...
Be6 {[%clk 0:02:44.4]} 9. Ne5 {[%clk 0:02:50.9]} 9... Nbd7 {[%clk 0:02:32.8]}
10. Nf3 {[%clk 0:02:50]} 10... c5 {[%clk 0:02:20.2]} 11. Nc3 {[%clk 0:02:49.1]}
11... Nd5 {[%clk 0:02:00.5]} 12. Ng5 {[%clk 0:02:38.4]} 12... Nxc3 {[%clk
0:01:48.8]} 13. bxc3 {[%clk 0:02:39.3]} 13... Bc4 {[%clk 0:01:47.1]} 14. Bxb7
{[%clk 0:02:35.1]} 14... Rb8 {[%clk 0:01:47.1]} 15. Bg2 {[%clk 0:02:29.4]} 15...
Qa5 {[%clk 0:01:45.6]} 16. Ne4 {[%clk 0:02:02.1]} 16... f5 {[%clk 0:00:55]} 17.
Nd2 {[%clk 0:01:23.1]} 17... Qxc3 {[%clk 0:00:47.1]} 18. Nxc4 {[%clk 0:01:23.4]}
18... Qxa1 {[%clk 0:00:44.6]} 19. dxc5 {[%clk 0:01:23.3]} 19... Ne5 {[%clk
0:00:24.6]} 20. Qd5+ {[%clk 0:01:12.1]} 20... Nf7 {[%clk 0:00:24.1]} 21. c6
{[%clk 0:00:53.5]} 21... Qxa2 {[%clk 0:00:23.4]} 22. Bf4 {[%clk 0:00:37.3]}
22... Rbd8 {[%clk 0:00:21.9]} 23. Qe6 {[%clk 0:00:29.8]} 23... Kh8 {[%clk
0:00:16.3]} 24. c7 {[%clk 0:00:24]} 24... Rc8 {[%clk 0:00:16.2]} 25. Bb7 {[%clk
0:00:24.5]} 25... Nd6 {[%clk 0:00:11.9]} 26. Bxd6 {[%clk 0:00:20]} 26... exd6
{[%clk 0:00:10.5]} 27. Bxc8 {[%clk 0:00:20]} 27... d5 {[%clk 0:00:09.9]} 28.
Qxd5 {[%clk 0:00:14.5]} 28... Rxc8 {[%clk 0:00:09.2]} 29. Qd8+ {[%clk
0:00:14.7]} 1-0

[Event "*** Titled Tuesday Blitz"]
[Site "Chess.com"]
[Date "2020.10.20"]
[Round "2"]
[White "kuban1991"]
[Black "Barmen_EV"]
[Result "1-0"]
[WhiteElo "2809"]
[BlackElo "2509"]
[TimeControl "180+1"]
[EndTime "10:17:43 PDT"]
[Termination "kuban1991 won by checkmate"]

1. Nf3 {[%clk 0:02:58.6]} 1... d5 {[%clk 0:03:00.3]} 2. g3 {[%clk 0:02:58.9]}
2... c5 {[%clk 0:03:00.8]} 3. Bg2 {[%clk 0:02:59.7]} 3... Nf6 {[%clk 0:03:01.4]}
4. O-O {[%clk 0:02:59.7]} 4... h6 {[%clk 0:03:02.3]} 5. c4 {[%clk 0:02:59.1]}
5... d4 {[%clk 0:03:02.4]} 6. e3 {[%clk 0:02:59.3]} 6... Nc6 {[%clk 0:03:02.2]}
7. b4 {[%clk 0:02:56.1]} 7... dxe3 {[%clk 0:02:48]} 8. fxe3 {[%clk 0:02:57]}
8... cxb4 {[%clk 0:02:38.5]} 9. d4 {[%clk 0:02:57]} 9... e6 {[%clk 0:02:37.9]}
10. Bb2 {[%clk 0:02:55.3]} 10... Be7 {[%clk 0:02:37.3]} 11. Nbd2 {[%clk
0:02:55.5]} 11... O-O {[%clk 0:02:36.7]} 12. e4 {[%clk 0:02:54.6]} 12... e5
{[%clk 0:02:23.6]} 13. d5 {[%clk 0:02:53.1]} 13... Nd4 {[%clk 0:02:23.4]} 14.
Nxd4 {[%clk 0:02:45.5]} 14... exd4 {[%clk 0:02:22.9]} 15. Bxd4 {[%clk
0:02:46.4]} 15... Ng4 {[%clk 0:02:20.5]} 16. e5 {[%clk 0:02:32.2]} 16... Bg5
{[%clk 0:02:10.3]} 17. Qe2 {[%clk 0:02:16.3]} 17... Re8 {[%clk 0:02:09.9]} 18.
Nf3 {[%clk 0:02:15]} 18... Bf6 {[%clk 0:01:30.9]} 19. Rae1 {[%clk 0:02:04.8]}
19... Bd7 {[%clk 0:01:11.7]} 20. Qb2 {[%clk 0:02:03.5]} 20... Bg5 {[%clk
0:00:46.4]} 21. h3 {[%clk 0:01:58.2]} 21... a5 {[%clk 0:00:46.1]} 22. hxg4
{[%clk 0:01:57.8]} 22... Bxg4 {[%clk 0:00:47]} 23. Nxg5 {[%clk 0:01:54.2]} 23...
Qxg5 {[%clk 0:00:47.9]} 24. Qf2 {[%clk 0:01:49.3]} 24... Bh5 {[%clk 0:00:45.7]}
25. d6 {[%clk 0:01:46.3]} 25... a4 {[%clk 0:00:41.3]} 26. Bd5 {[%clk 0:01:38.9]}
26... Rf8 {[%clk 0:00:39]} 27. Qf4 {[%clk 0:01:29.6]} 27... Qg6 {[%clk
0:00:30.1]} 28. e6 {[%clk 0:01:21.7]} 28... b3 {[%clk 0:00:15]} 29. e7 {[%clk
0:01:19.3]} 29... bxa2 {[%clk 0:00:09.7]} 30. exf8=Q+ {[%clk 0:01:19.1]} 30...
Rxf8 {[%clk 0:00:10.6]} 31. c5 {[%clk 0:01:17.4]} 31... Qc2 {[%clk 0:00:09]} 32.
Rf2 {[%clk 0:01:14.4]} 32... Qd3 {[%clk 0:00:05.8]} 33. Bxa2 {[%clk 0:01:11.7]}
33... Bg6 {[%clk 0:00:04.1]} 34. Qe5 {[%clk 0:01:08.9]} 34... Qxd4 {[%clk
0:00:01]} 35. Qxd4 {[%clk 0:01:08.5]} 35... Kh7 {[%clk 0:00:01.8]} 36. d7 {[%clk
0:01:07.3]} 36... Rd8 {[%clk 0:00:02.7]} 37. Re8 {[%clk 0:01:06.9]} 37... a3
{[%clk 0:00:03.6]} 38. Rxd8 {[%clk 0:01:06.7]} 38... b5 {[%clk 0:00:04.5]} 39.
Rf8 {[%clk 0:01:03.2]} 39... h5 {[%clk 0:00:05.4]} 40. R8xf7 {[%clk 0:01:03.1]}
40... Bxf7 {[%clk 0:00:04.8]} 41. Rxf7 {[%clk 0:01:04]} 41... b4 {[%clk
0:00:05.7]} 42. Qxg7# {[%clk 0:01:04.4]} 1-0

[Event "*** Titled Tuesday Blitz"]
[Site "Chess.com"]
[Date "2020.10.20"]
[Round "2"]
[White "Ariadna_Atreides"]
[Black "anpospan"]
[Result "0-1"]
[WhiteElo "2050"]
[BlackElo "2375"]
[TimeControl "180+1"]
[EndTime "10:17:43 PDT"]
[Termination "anpospan won on time"]

1. d4 {[%clk 0:03:00.9]} 1... Nf6 {[%clk 0:02:58.4]} 2. Nf3 {[%clk 0:03:01]}
2... e6 {[%clk 0:02:57.7]} 3. e3 {[%clk 0:02:59.8]} 3... b6 {[%clk 0:02:57.4]}
4. Bd3 {[%clk 0:02:59.2]} 4... Bb7 {[%clk 0:02:57.5]} 5. O-O {[%clk 0:02:58.3]}
5... d6 {[%clk 0:02:57.8]} 6. b3 {[%clk 0:02:56.2]} 6... Nbd7 {[%clk 0:02:57.9]}
7. Bb2 {[%clk 0:02:55.8]} 7... Be7 {[%clk 0:02:58.2]} 8. Nbd2 {[%clk 0:02:52.3]}
8... a5 {[%clk 0:02:58]} 9. e4 {[%clk 0:02:47.1]} 9... a4 {[%clk 0:02:56.5]} 10.
e5 {[%clk 0:02:32.6]} 10... Nd5 {[%clk 0:02:52.7]} 11. c4 {[%clk 0:02:23.4]}
11... a3 {[%clk 0:02:38.9]} 12. Bc1 {[%clk 0:02:19.9]} 12... Nf4 {[%clk
0:02:29.1]} 13. Be4 {[%clk 0:02:17.1]} 13... d5 {[%clk 0:02:24]} 14. cxd5 {[%clk
0:02:12.3]} 14... Nxd5 {[%clk 0:02:18.2]} 15. Nb1 {[%clk 0:01:41.4]} 15... h6
{[%clk 0:02:11.8]} 16. Re1 {[%clk 0:01:22.2]} 16... O-O {[%clk 0:01:52.9]} 17.
Nfd2 {[%clk 0:01:05.4]} 17... c5 {[%clk 0:01:41.1]} 18. Nc4 {[%clk 0:01:00.8]}
18... cxd4 {[%clk 0:01:37.8]} 19. Qh5 {[%clk 0:00:33.5]} 19... b5 {[%clk
0:01:25.3]} 20. Bxh6 {[%clk 0:00:29.3]} 20... f5 {[%clk 0:00:46.2]} 21. Qg6
{[%clk 0:00:13.3]} 21... Rf7 {[%clk 0:00:40.4]} 22. Qxe6 {[%clk 0:00:10]} 22...
fxe4 {[%clk 0:00:35.5]} 23. Nd6 {[%clk 0:00:04.2]} 23... Bxd6 {[%clk 0:00:31.3]}
24. exd6 {[%clk 0:00:04.4]} 24... gxh6 {[%clk 0:00:29.9]} 25. Rxe4 {[%clk
0:00:03.6]} 25... N7f6 {[%clk 0:00:21.5]} 26. Qf5 {[%clk 0:00:02]} 26... Nxe4
{[%clk 0:00:20.2]} 27. Qg4+ {[%clk 0:00:01.2]} 27... Ng5 {[%clk 0:00:19.2]} 0-1

[Event "*** Titled Tuesday Blitz"]
[Site "Chess.com"]
[Date "2020.10.20"]
[Round "2"]
[White "davigator"]
[Black "frederiksvane"]
[Result "1-0"]
[WhiteElo "2352"]
[BlackElo "2656"]
[TimeControl "180+1"]
[EndTime "10:17:44 PDT"]
[Termination "davigator won by checkmate"]

1. e4 {[%clk 0:03:00.9]} 1... c5 {[%clk 0:02:59.5]} 2. Nf3 {[%clk 0:03:00.6]}
2... g6 {[%clk 0:02:55.5]} 3. d4 {[%clk 0:02:57.8]} 3... cxd4 {[%clk 0:02:55]}
4. Nxd4 {[%clk 0:02:57.6]} 4... Bg7 {[%clk 0:02:53.1]} 5. c4 {[%clk 0:02:57.4]}
5... Nc6 {[%clk 0:02:51.3]} 6. Nc2 {[%clk 0:02:56.2]} 6... Nf6 {[%clk
0:02:46.5]} 7. Nc3 {[%clk 0:02:54.3]} 7... O-O {[%clk 0:02:41.4]} 8. Be2 {[%clk
0:02:54.1]} 8... d6 {[%clk 0:02:40.8]} 9. O-O {[%clk 0:02:53.8]} 9... Be6 {[%clk
0:02:39.8]} 10. Rb1 {[%clk 0:02:51.3]} 10... Rc8 {[%clk 0:02:32.9]} 11. b3
{[%clk 0:02:50.4]} 11... Nd7 {[%clk 0:02:20.3]} 12. Nd5 {[%clk 0:02:49.7]} 12...
Nc5 {[%clk 0:02:20.6]} 13. Bd3 {[%clk 0:02:44.3]} 13... Qd7 {[%clk 0:02:15.1]}
14. Nce3 {[%clk 0:02:29.8]} 14... Nxd3 {[%clk 0:01:58.8]} 15. Qxd3 {[%clk
0:02:29.3]} 15... Ne5 {[%clk 0:01:59]} 16. Qe2 {[%clk 0:02:26.6]} 16... Ng4
{[%clk 0:01:52.7]} 17. f3 {[%clk 0:02:18.9]} 17... Nxe3 {[%clk 0:01:46.9]} 18.
Bxe3 {[%clk 0:02:18.7]} 18... b6 {[%clk 0:01:47]} 19. Rbc1 {[%clk 0:02:12.8]}
19... Rfe8 {[%clk 0:01:32.3]} 20. Rfd1 {[%clk 0:02:11]} 20... Qb7 {[%clk
0:01:29]} 21. Qf1 {[%clk 0:02:03.7]} 21... Bd7 {[%clk 0:01:25.4]} 22. Bg5 {[%clk
0:02:02.5]} 22... Bc6 {[%clk 0:01:19.3]} 23. Qf2 {[%clk 0:01:54.2]} 23... e6
{[%clk 0:01:04.8]} 24. Nf6+ {[%clk 0:01:52.9]} 24... Bxf6 {[%clk 0:01:02.5]} 25.
Bxf6 {[%clk 0:01:53.5]} 25... d5 {[%clk 0:00:59.2]} 26. Qh4 {[%clk 0:01:53]}
26... h5 {[%clk 0:00:53.8]} 27. Qg5 {[%clk 0:01:52.5]} 27... Kh7 {[%clk
0:00:50.6]} 28. e5 {[%clk 0:01:34.7]} 28... dxc4 {[%clk 0:00:41.3]} 29. Rxc4
{[%clk 0:01:34.4]} 29... Bxf3 {[%clk 0:00:26.2]} 30. gxf3 {[%clk 0:01:34.3]}
30... Rxc4 {[%clk 0:00:25.5]} 31. bxc4 {[%clk 0:01:33.7]} 31... Qxf3 {[%clk
0:00:23.3]} 32. Rf1 {[%clk 0:01:34.2]} 32... Qe4 {[%clk 0:00:19]} 33. h3 {[%clk
0:01:23]} 33... Rc8 {[%clk 0:00:15.5]} 34. Be7 {[%clk 0:01:17.8]} 34... Kg8
{[%clk 0:00:13.8]} 35. Rf4 {[%clk 0:01:07.5]} 35... Qe3+ {[%clk 0:00:08.9]} 36.
Kg2 {[%clk 0:01:06.4]} 36... Rxc4 {[%clk 0:00:04.9]} 37. Rf2 {[%clk 0:01:00]}
37... Qe4+ {[%clk 0:00:03.3]} 38. Kh2 {[%clk 0:00:58.8]} 38... Rc3 {[%clk
0:00:02.9]} 39. Qf6 {[%clk 0:00:53.6]} 39... Rxh3+ {[%clk 0:00:01.4]} 40. Kxh3
{[%clk 0:00:53.1]} 40... Qe3+ {[%clk 0:00:01.6]} 41. Kg2 {[%clk 0:00:52.5]}
41... Qe4+ {[%clk 0:00:01.4]} 42. Kh2 {[%clk 0:00:52.6]} 42... Qg4 {[%clk
0:00:01.8]} 43. Qxf7+ {[%clk 0:00:51.4]} 43... Kh8 {[%clk 0:00:02.7]} 44. Bf6#
{[%clk 0:00:51.7]} 1-0